bitfinex-derivatives/quotes_BTCF0:USTF0_20260119
["timestamp","ask_amount","ask_price","bid_price","bid_amount"]
[1768831256742,0.09676,93063.0,93050.0,0.09145387]
[1768831257145,0.02266448,93062.0,93050.0,0.09145387]
[1768831257442,0.02266448,93061.0,93050.0,0.09145387]
[1768831257631,0.09676,93063.0,93051.0,0.010752]
[1768831257831,0.02266444,93062.0,93051.0,0.010752]
[1768831258036,0.02266444,93061.0,93051.0,0.010752]
[1768831258237,0.02266444,93060.0,93048.0,0.010752]
[1768831258440,0.107511,93063.0,93048.0,0.010752]
[1768831258641,0.18035536,93060.0,93047.0,0.00016121]
[1768831260149,0.02267763,93059.0,93047.0,0.00016121]
[1768831260352,0.18035536,93060.0,93047.0,0.00016121]
[1768831260555,0.02267764,93059.0,93047.0,0.00016121]
[1768831260755,0.0143217,93062.0,93047.0,0.00016121]
[1768831260952,0.18035536,93060.0,93047.0,0.00016121]
[1768831261150,0.02267777,93059.0,93047.0,0.00016121]
[1768831261848,0.02267777,93059.0,93049.0,0.010752]
[1768831263863,0.02267777,93059.0,93047.0,0.00016121]
[1768831264060,0.09676,93064.0,93060.0,0.010751]
[1768831264267,0.11273909,93086.0,93067.0,0.07830101]
[1768831264459,0.09676,93086.0,93070.0,0.35011024]
[1768831264664,0.09676,93086.0,93071.0,0.07830101]
[1768831264850,0.09676,93087.0,93072.0,0.16975488]
[1768831265055,0.09676,93087.0,93073.0,0.07830101]
[1768831265455,0.107508,93087.0,93072.0,0.09145387]
[1768831265658,0.18035536,93082.0,93069.0,0.00016121]
[1768831265852,0.02320986,93081.0,93069.0,0.00016121]
[1768831266563,0.02320986,93079.0,93058.0,0.09145387]
[1768831266960,0.02320986,93079.0,93064.0,0.010751]
[1768831267160,0.02320986,93079.0,93066.0,0.01075]
[1768831269760,0.27908157,93080.0,93068.0,0.01075]
[1768831269969,0.0256096,93082.0,93063.0,0.07830101]
[1768831270171,0.0256096,93082.0,93064.0,0.07830101]
[1768831271471,0.0256096,93082.0,93064.0,0.16975488]
[1768831271862,0.0256096,93082.0,93069.0,0.01075]
[1768831272071,0.0256096,93082.0,93071.0,0.01075]
[1768831272473,0.00252467,93084.0,93071.0,0.01075]
[1768831273167,0.01327267,93084.0,93064.0,0.16975488]
[1768831273369,0.00252467,93084.0,93068.0,0.01075]
[1768831273570,0.00252467,93084.0,93067.0,0.01075]
[1768831273571,0.02621656,93081.0,93067.0,0.01075]
[1768831273871,0.02621656,93081.0,93064.0,0.010751]
[1768831274472,0.02636797,93077.0,93061.0,0.010751]
[1768831274673,0.02636797,93076.0,93061.0,0.010751]
[1768831275367,0.02636797,93076.0,93060.0,0.010751]
[1768831275768,0.02636797,93076.0,93062.0,0.010751]
[1768831276972,0.02636797,93076.0,93064.0,0.010751]
[1768831277367,0.02710919,93076.0,93066.0,0.01075]
[1768831277668,0.02710919,93075.0,93057.0,0.10744716]
[1768831278172,0.02710919,93075.0,93056.0,0.09676]
[1768831278674,0.02710919,93075.0,93057.0,0.10744485]
[1768831280276,0.02710919,93075.0,93063.0,0.010751]
[1768831280773,0.02710919,93075.0,93056.0,0.09676]
[1768831281271,0.02710919,93075.0,93057.0,0.10744716]
[1768831281673,0.02710919,93075.0,93063.0,0.010751]
[1768831282275,0.02710919,93075.0,93056.0,0.09676]
[1768831282575,0.02710919,93075.0,93057.0,0.10745062]
[1768831283576,0.01075,93074.0,93061.0,0.010751]
[1768831283968,0.01075,93074.0,93056.0,0.09676]
[1768831284172,0.03011135,93069.0,93056.0,0.09676]
[1768831284476,0.03011135,93069.0,93056.0,0.010752]
[1768831284668,0.03011135,93069.0,93051.0,0.09676]
[1768831284868,0.03011135,93069.0,93058.0,0.010751]
[1768831285068,0.03011135,93069.0,93051.0,0.20421466]
[1768831285276,0.03011135,93069.0,93051.0,0.09676]
[1768831285469,0.03011135,93069.0,93057.0,0.010751]
[1768831285668,0.03011135,93069.0,93051.0,0.09676]
[1768831286269,0.03011135,93069.0,93051.0,0.14871936]
[1768831286469,0.18035536,93070.0,93052.0,0.17935364]
[1768831286867,0.18035536,93070.0,93058.0,0.010751]
[1768831287067,0.18035536,93070.0,93052.0,0.17935364]
[1768831287366,0.18035536,93070.0,93060.0,0.010751]
[1768831288072,0.18035536,93070.0,93052.0,0.17935364]
[1768831288374,0.03247598,93069.0,93052.0,0.09828705]
[1768831288577,0.04322598,93068.0,93054.0,0.010752]
[1768831288878,0.04322598,93068.0,93051.0,0.09676]
[1768831289372,0.04322598,93068.0,93054.0,0.010752]
[1768831289678,0.04322598,93068.0,93051.0,0.09676]
[1768831290471,0.04322598,93068.0,93054.0,0.010752]
[1768831291273,0.03247598,93068.0,93054.0,0.010752]
[1768831291472,0.04322598,93068.0,93054.0,0.010752]
[1768831291981,0.03247598,93068.0,93054.0,0.010752]
[1768831292170,0.01075,93067.0,93054.0,0.010752]
[1768831292370,0.03247598,93068.0,93054.0,0.010752]
[1768831292971,0.03247598,93068.0,93051.0,0.09676]
[1768831293171,0.18035536,93070.0,93051.0,0.09676]
[1768831293481,0.18035536,93070.0,93057.0,0.010751]
[1768831295482,0.18035536,93070.0,93051.0,0.17782659]
[1768831295678,0.18035536,93070.0,93055.0,0.010752]
[1768831296078,0.19110536,93070.0,93055.0,0.010752]
[1768831296278,0.01075,93069.0,93055.0,0.010752]
[1768831296883,0.01075,93067.0,93052.0,0.010752]
[1768831297583,0.23376961,93070.0,93054.0,0.010752]
[1768831297784,0.01075,93067.0,93052.0,0.010752]
[1768831297981,0.0544702,93069.0,93053.0,0.010752]
[1768831298189,0.01075,93067.0,93051.0,0.09676]
[1768831299487,0.01075,93067.0,93051.0,0.107512]
[1768831299985,0.0544702,93069.0,93051.0,0.107512]
[1768831300690,0.0544702,93069.0,93052.0,0.010752]
[1768831300986,0.18035536,93070.0,93052.0,0.08443725]
[1768831301486,0.18035536,93070.0,93057.0,0.010751]
[1768831301689,0.18035536,93070.0,93058.0,0.010751]
[1768831303282,0.18035536,93070.0,93052.0,0.08443725]
[1768831304385,0.18035536,93070.0,93055.0,0.010752]
[1768831304781,0.19110536,93070.0,93055.0,0.010752]
[1768831304985,0.04426928,93070.0,93051.0,0.18907601]
[1768831305284,0.04426928,93070.0,93052.0,0.010752]
[1768831306188,0.04426928,93070.0,93051.0,0.18907601]
[1768831306582,0.04426928,93070.0,93054.0,0.010752]
[1768831306782,0.05501928,93070.0,93054.0,0.010752]
[1768831306985,0.04448237,93068.0,93051.0,0.107512]
[1768831307987,0.04448237,93068.0,93053.0,0.010752]
[1768831309982,0.10907065,93069.0,93053.0,0.010752]
[1768831310180,0.10907065,93069.0,93054.0,0.010752]
[1768831310385,0.09832065,93069.0,93055.0,0.010752]
[1768831314790,0.10907065,93069.0,93052.0,0.010752]
[1768831315092,0.10907065,93069.0,93054.0,0.010752]
[1768831315693,0.15755144,93069.0,93053.0,0.010752]
[1768831315893,0.04844992,93068.0,93053.0,0.010752]
[1768831316396,0.01075,93067.0,93053.0,0.010752]
[1768831317282,0.05922465,93067.0,93053.0,0.010752]
[1768831317791,0.04847465,93067.0,93053.0,0.010752]
[1768831320393,0.04847465,93067.0,93049.0,0.15254214]
[1768831320592,0.09832065,93069.0,93055.0,0.010752]
[1768831320989,0.09832065,93069.0,93049.0,0.24318523]
[1768831320990,0.05904172,93068.0,93052.0,0.010752]
[1768831321194,0.05904172,93068.0,93049.0,0.24318523]
[1768831321395,0.04829172,93068.0,93049.0,0.24318523]
[1768831321795,0.01075,93067.0,93053.0,0.010752]
[1768831321994,0.09025651,93055.0,93035.0,0.09064309]
[1768831322191,0.010752,93057.0,93040.0,0.010753]
[1768831322391,0.09025651,93058.0,93040.0,0.07727692]
[1768831322586,0.09676,93059.0,93040.0,0.16792001]
[1768831322792,0.09676,93059.0,93044.0,0.010753]
[1768831322993,0.00016121,93058.0,93044.0,0.010753]
[1768831323195,0.01091221,93058.0,93043.0,0.010753]
[1768831323395,0.00016121,93058.0,93043.0,0.010753]
[1768831323598,0.04537638,93058.0,93043.0,0.010753]
[1768831324394,0.05612738,93058.0,93043.0,0.010753]
[1768831324895,0.04537638,93058.0,93043.0,0.010753]
[1768831325995,0.04537638,93058.0,93039.0,0.09675336]
[1768831326206,0.04537638,93058.0,93040.0,0.07727692]
[1768831326891,0.04537638,93058.0,93041.0,0.07727692]
[1768831327093,0.04537638,93058.0,93040.0,0.07727692]
[1768831327291,0.04537638,93058.0,93039.0,0.09675336]
[1768831327495,0.04537638,93058.0,93042.0,0.010753]
[1768831327696,0.04537638,93058.0,93044.0,0.010753]
[1768831328599,0.05612738,93058.0,93041.0,0.010753]
[1768831328806,0.05403641,93051.0,93041.0,0.07727692]
[1768831329010,0.05403641,93051.0,93030.0,0.09064309]
[1768831329308,0.05397611,93049.0,93034.0,0.010754]
[1768831329506,0.05397611,93047.0,93031.0,0.010754]
[1768831329695,0.05397611,93043.0,93030.0,0.010755]
[1768831330097,0.05904449,93041.0,93029.0,0.00236487]
[1768831330298,0.05904449,93041.0,93027.0,0.010755]
[1768831330694,0.05904449,93041.0,93024.0,0.00236498]
[1768831330898,0.05904449,93041.0,93026.0,0.010755]
[1768831331098,0.05904449,93041.0,93026.0,0.02170226]
[1768831331601,0.05904449,93041.0,93024.0,0.00236498]
[1768831331801,0.05904449,93041.0,93019.0,0.18739645]
[1768831332002,0.05904449,93041.0,93020.0,0.09064309]
[1768831332206,0.05904449,93041.0,93020.0,0.1981324]
[1768831332604,0.05904449,93041.0,93026.0,0.010755]
[1768831332806,0.00016121,93040.0,93023.0,0.01114602]
[1768831333006,0.00016121,93040.0,93020.0,0.09064309]
[1768831333207,0.00016121,93040.0,93024.0,0.10748816]
[1768831333402,0.06209925,93040.0,93020.0,0.09064309]
[1768831333803,0.06209925,93040.0,93021.0,0.10748816]
[1768831334613,0.06209925,93040.0,93014.0,0.09676]
[1768831334614,0.06182281,93035.0,93014.0,0.19351336]
[1768831334919,0.06223844,93034.0,93015.0,0.1074922]
[1768831335211,0.06223844,93028.0,93015.0,0.1074922]
[1768831335412,0.06223844,93028.0,93014.0,0.09676]
[1768831335607,0.06223844,93028.0,93014.0,0.107516]
[1768831336313,0.06223844,93028.0,93016.0,0.010756]
[1768831336714,0.06223844,93028.0,93014.0,0.09676]
[1768831337015,0.06223844,93028.0,93015.0,0.010756]
[1768831337211,0.06127015,93027.0,93015.0,0.010756]
[1768831337806,0.06127015,93027.0,93009.0,0.00236538]
[1768831337807,0.06127015,93026.0,93010.0,0.010757]
[1768831338007,0.06114988,93025.0,93010.0,0.010757]
[1768831338412,0.06114988,93023.0,93010.0,0.010757]
[1768831338614,0.06114988,93021.0,93009.0,0.00236538]
[1768831338819,0.06101224,93019.0,93004.0,0.00236549]
[1768831339117,0.15126875,93014.0,93004.0,0.00236549]
[1768831339309,0.15126875,93013.0,92997.0,0.010758]
[1768831339511,0.06101224,93012.0,92997.0,0.010758]
[1768831339706,0.06101224,93012.0,92998.0,0.010758]
[1768831339908,0.06104793,93010.0,92992.0,0.0968]
[1768831340206,0.06104793,93010.0,93000.0,0.010758]
[1768831340813,7.768e-05,93009.0,93000.0,0.010758]
[1768831341015,7.768e-05,93009.0,93002.0,0.010758]
[1768831341407,7.768e-05,93009.0,92999.0,0.010758]
[1768831341917,2.1e-07,93018.0,93015.0,0.010756]
[1768831342114,0.15093053,93035.0,93014.0,0.09064309]
[1768831342317,0.15093053,93035.0,93022.0,0.010755]
[1768831342513,0.0968,93034.0,93022.0,0.010755]
[1768831342912,4.177e-05,93033.0,93022.0,0.010755]
[1768831343113,0.0968,93032.0,93016.0,0.08738106]
[1768831343314,0.0968,93032.0,93017.0,0.08738106]
[1768831343515,0.0968,93032.0,93018.0,0.00016121]
[1768831343719,0.0968,93032.0,93021.0,0.010756]
[1768831343913,0.0968,93032.0,93023.0,0.010755]
[1768831344419,0.0968,93032.0,93022.0,0.010755]
[1768831348125,0.15577572,93032.0,93019.0,0.010756]
[1768831348314,0.05897572,93031.0,93018.0,0.00016121]
[1768831349513,0.05897572,93031.0,93018.0,0.01091721]
[1768831350114,0.05897572,93031.0,93020.0,0.010756]
[1768831352325,0.0968,93032.0,93018.0,0.00016121]
[1768831353314,6.8e-07,93043.0,93024.0,0.010755]
[1768831353621,0.09916436,93049.0,93038.0,0.010754]
[1768831353821,0.09916436,93049.0,93044.0,0.010753]
[1768831354016,0.0968,93057.0,93044.0,0.010753]
[1768831354222,0.0968,93057.0,93048.0,0.010752]
[1768831354521,0.0968,93066.0,93056.0,0.010752]
[1768831354722,0.0968,93066.0,93058.0,0.010751]
[1768831354921,0.0968,93073.0,93060.0,0.010751]
[1768831355127,0.01075,93071.0,93053.0,0.09044998]
[1768831355627,0.01359465,93070.0,93054.0,0.010752]
[1768831355816,0.01359465,93070.0,93057.0,0.010751]
[1768831356829,0.01359465,93070.0,93057.0,0.00838602]
[1768831357518,0.0968,93073.0,93059.0,0.010751]
[1768831358423,0.0968,93073.0,93062.0,0.010751]
[1768831359115,0.0968,93073.0,93062.0,0.00838613]
[1768831359322,0.0968,93073.0,93059.0,0.010751]
[1768831361027,0.0968,93073.0,93056.0,0.010752]
[1768831361318,0.02053026,93072.0,93056.0,0.010752]
[1768831362031,0.0198433,93070.0,93055.0,0.010752]
[1768831362728,0.0305933,93070.0,93054.0,0.00016121]
[1768831362939,0.0968,93073.0,93046.0,0.010753]
[1768831362940,0.01925818,93060.0,93046.0,0.010753]
[1768831363931,0.01925818,93060.0,93048.0,0.010753]
[1768831364329,0.010751,93066.0,93048.0,0.010753]
[1768831364330,0.01859145,93065.0,93048.0,0.010753]
[1768831364927,0.00016121,93071.0,93056.0,0.010752]
[1768831365134,0.00016121,93071.0,93055.0,0.09426225]
[1768831365135,0.0968,93070.0,93058.0,0.010751]
[1768831365835,2.1e-07,93071.0,93057.0,0.19552266]
[1768831366134,2.1e-07,93071.0,93065.0,0.01075]
[1768831366521,2.1e-07,93071.0,93062.0,0.010751]
[1768831368724,2.1e-07,93071.0,93064.0,0.010751]
[1768831368926,2.1e-07,93071.0,93059.0,0.19552266]
[1768831369729,2.1e-07,93071.0,93059.0,0.09426225]
[1768831369929,2.1e-07,93071.0,93059.0,0.10501325]
[1768831370129,2.1e-07,93071.0,93061.0,0.010751]
[1768831371738,2.1e-07,93071.0,93059.0,0.09426225]
[1768831371927,2.1e-07,93071.0,93059.0,0.19552266]
[1768831373729,2.1e-07,93071.0,93062.0,0.010751]
[1768831374030,2.1e-07,93071.0,93059.0,0.19552266]
[1768831374239,0.1802911,93070.0,93058.0,0.010751]
[1768831375033,0.01135383,93067.0,93058.0,0.006184]
[1768831375427,0.01135383,93069.0,93057.0,0.010752]
[1768831375623,0.01135383,93068.0,93057.0,0.010752]
[1768831376429,0.01135383,93068.0,93055.0,0.00016121]
[1768831376829,0.01135383,93068.0,93049.0,0.09476425]
[1768831377031,0.01059766,93065.0,93050.0,0.010752]
[1768831377227,0.01059766,93065.0,93048.0,0.09676]
[1768831377228,0.1802911,93060.0,93047.0,0.010753]
[1768831377435,0.1802911,93060.0,93044.0,0.09676]
[1768831377939,0.1802911,93060.0,93044.0,0.28553267]
[1768831378139,0.1802911,93060.0,93050.0,0.010752]
[1768831379041,0.00919859,93065.0,93050.0,0.010752]
[1768831379955,0.19963371,93060.0,93044.0,0.010753]
[1768831380148,0.00859161,93059.0,93046.0,0.010753]
[1768831381050,0.010751,93061.0,93028.0,0.18877267]
[1768831381051,0.00779752,93051.0,93028.0,0.18877267]
[1768831381258,0.00779752,93047.0,93034.0,0.010754]
[1768831381448,0.00779752,93047.0,93035.0,0.010754]
[1768831381852,0.00719899,93051.0,93035.0,0.010754]
[1768831382050,0.00719899,93051.0,93028.0,0.19152425]
[1768831382051,0.18045231,93050.0,93038.0,0.010754]
[1768831382454,0.18045231,93050.0,93031.0,0.09400842]
[1768831382649,0.18045231,93050.0,93031.0,0.18877267]
[1768831382849,0.1802911,93041.0,93032.0,0.010754]
[1768831383047,0.1802911,93041.0,93029.0,0.010755]
[1768831383247,0.1802911,93041.0,93031.0,0.010755]
[1768831383450,0.0058222,93040.0,93021.0,0.18877267]
[1768831383643,0.1802911,93031.0,93020.0,0.010756]
[1768831384043,0.0058222,93037.0,93020.0,0.010756]
[1768831384243,0.0058222,93037.0,93022.0,0.010756]
[1768831384444,0.18552415,93032.0,93013.0,0.09400842]
[1768831384744,0.00523305,93031.0,93017.0,0.010756]
[1768831385252,0.00523305,93031.0,93014.0,0.09676]
[1768831386052,0.00523305,93031.0,93020.0,0.010756]
[1768831387353,0.00016121,93032.0,93018.0,0.09476425]
[1768831387558,0.00016121,93032.0,93024.0,0.010755]
[1768831387756,0.010753,93046.0,93028.0,0.010755]
[1768831387960,0.010753,93044.0,93028.0,0.09476425]
[1768831388264,0.1802911,93040.0,93025.0,0.010755]
[1768831389860,0.1802911,93040.0,93027.0,0.010755]
[1768831390246,0.1802911,93040.0,93024.0,0.010755]
[1768831390758,0.1802911,93040.0,93026.0,0.010755]
[1768831391354,0.1802911,93040.0,93024.0,0.010755]
[1768831391863,0.1910441,93040.0,93024.0,0.010755]
[1768831392054,0.1910441,93040.0,93023.0,0.00016121]
[1768831392256,0.28424785,93040.0,93023.0,0.01091621]
[1768831393262,0.09320375,93039.0,93023.0,0.01091621]
[1768831394167,0.09320375,93039.0,93025.0,0.010755]
[1768831394355,0.0968,93039.0,93029.0,0.18877267]
[1768831394557,0.0968,93039.0,93029.0,0.09476425]
[1768831395365,0.0968,93039.0,93029.0,0.10551925]
[1768831398971,0.0968,93039.0,93025.0,0.09400842]
[1768831399172,0.0968,93039.0,93025.0,0.10476342]
[1768831399568,0.0968,93039.0,93025.0,0.010755]
[1768831400264,0.0968,93039.0,93024.0,0.09476425]
[1768831400465,0.1802911,93034.0,93023.0,0.00016121]
[1768831400872,0.010754,93038.0,93023.0,0.00016121]
[1768831401065,0.10395775,93038.0,93023.0,0.00016121]
[1768831401668,0.09320375,93038.0,93024.0,0.010755]
[1768831402172,0.09320375,93038.0,93023.0,0.00016121]
[1768831404268,0.09320375,93038.0,93026.0,0.010755]
[1768831405177,0.0968,93039.0,93028.0,0.09571518]
[1768831405479,0.0968,93044.0,93031.0,0.19121816]
[1768831405778,0.0968,93044.0,93031.0,0.09550298]
[1768831405979,0.107553,93044.0,93031.0,0.09550298]
[1768831406169,0.010753,93042.0,93027.0,0.010755]
[1768831406366,0.1802911,93040.0,93024.0,0.010755]
[1768831406570,0.1802911,93040.0,93023.0,0.00016121]
[1768831406571,0.010754,93037.0,93023.0,0.00016121]
[1768831406775,0.09173373,93036.0,93023.0,0.00016121]
[1768831407279,0.010754,93035.0,93023.0,0.00016121]
[1768831407484,0.010754,93035.0,93019.0,0.010756]
[1768831407978,0.10248773,93035.0,93019.0,0.010756]
[1768831408571,0.09173373,93035.0,93015.0,0.09571518]
[1768831408881,0.09173373,93035.0,93019.0,0.010756]
[1768831410777,0.1802911,93030.0,93014.0,0.09550298]
[1768831410986,0.09173373,93029.0,93014.0,0.0968]
[1768831411968,0.09173373,93029.0,93014.0,0.107556]
[1768831412683,0.09173373,93029.0,93018.0,0.010756]
[1768831412880,0.09173373,93029.0,93014.0,0.0968]
[1768831414383,0.09173373,93028.0,93014.0,0.0968]
[1768831414583,0.09173373,93027.0,93014.0,0.0968]
[1768831414785,0.09173373,93027.0,93016.0,0.010756]
[1768831415483,0.0872772,93028.0,93016.0,0.010756]
[1768831416285,0.0872772,93028.0,93017.0,0.010756]
[1768831416876,0.0872772,93028.0,93014.0,0.0968]
[1768831417081,0.17901093,93028.0,93014.0,0.0968]
[1768831417287,0.09173373,93027.0,93014.0,0.0968]
[1768831417484,0.36584186,93024.0,93009.0,0.00236538]
[1768831417679,0.1802911,93020.0,93009.0,0.00236538]
[1768831417887,0.09173373,93023.0,93014.0,0.010756]
[1768831418084,0.09173373,93023.0,93009.0,0.00236538]
[1768831418284,0.09173373,93023.0,93012.0,0.010757]
[1768831419289,0.09173373,93023.0,93009.0,0.01312238]
[1768831420085,0.26627927,93020.0,93009.0,0.00236538]
[1768831420388,0.08362279,93017.0,93006.0,0.010757]
[1768831420609,0.08362279,93017.0,93006.0,0.00934164]
[1768831421278,0.08362279,93017.0,92998.0,0.18994256]
[1768831421279,0.09437879,93017.0,93003.0,0.010758]
[1768831421480,0.08362279,93017.0,93003.0,0.010758]
[1768831421780,0.08362279,93017.0,93004.0,0.01312349]
[1768831422585,0.08362279,93017.0,93004.0,0.00236549]
[1768831422792,0.08362279,93017.0,93004.0,0.01312349]
[1768831423492,0.08362279,93017.0,93004.0,0.00236549]
[1768831423888,0.08139708,93016.0,93004.0,0.00236549]
[1768831424990,0.1642988,93016.0,93004.0,0.00236549]
[1768831425900,0.1642988,93016.0,93004.0,0.01312349]
[1768831427290,0.08139708,93016.0,93004.0,0.01312349]
[1768831427900,0.08139708,93016.0,93004.0,0.00236549]
[1768831428590,0.09215308,93016.0,93004.0,0.00236549]
[1768831428792,0.08139708,93016.0,93007.0,0.010757]
[1768831428991,0.08139708,93016.0,93005.0,0.010758]
[1768831429600,0.08139708,93016.0,93004.0,0.00236549]
[1768831429801,0.08139708,93016.0,93004.0,0.01312349]
[1768831430104,0.010756,93015.0,93004.0,0.00236549]
[1768831430300,0.0893188,93015.0,93004.0,0.00236549]
[1768831430686,0.08695431,93013.0,92998.0,0.107558]
[1768831430888,0.07568592,93011.0,92998.0,0.107558]
[1768831432690,0.07568592,93011.0,92998.0,0.0968]
[1768831434903,0.07568592,93011.0,92998.0,0.107558]
[1768831435096,0.08644292,93011.0,92998.0,0.0968]
[1768831435611,0.07568592,93011.0,92998.0,0.107558]
[1768831436300,0.07568592,93011.0,92998.0,0.0968]
[1768831436600,0.07568592,93011.0,92995.0,0.010759]
[1768831437104,0.07172609,93010.0,92994.0,0.01294054]
[1768831437302,0.07172609,93009.0,92995.0,0.010759]
[1768831437703,0.07172609,93009.0,92997.0,0.010758]
[1768831439901,0.08248309,93009.0,92994.0,0.01387652]
[1768831440099,0.010757,93012.0,92992.0,0.0968]
[1768831440306,0.0809999,93013.0,92998.0,0.010758]
[1768831440698,0.010757,93011.0,92996.0,0.010759]
[1768831441100,0.0702429,93013.0,92997.0,0.010758]
[1768831441301,0.010757,93012.0,92998.0,0.010758]
[1768831441604,0.0702429,93013.0,92999.0,0.010758]
[1768831441817,0.06884497,93017.0,92995.0,0.09123463]
[1768831442104,0.09696121,93020.0,93009.0,0.010757]
[1768831442300,0.09696121,93020.0,93006.0,0.09123463]
[1768831442301,0.09696121,93020.0,93011.0,0.010757]
[1768831442604,0.09696121,93020.0,93009.0,0.010757]
[1768831442794,0.09696121,93020.0,93007.0,0.010757]
[1768831442996,0.00016121,93020.0,93009.0,0.010757]
[1768831443194,0.00016121,93020.0,93006.0,0.09123463]
[1768831443195,0.010756,93019.0,93006.0,0.09123463]
[1768831443504,0.01091721,93020.0,93006.0,0.09123463]
[1768831443802,0.00016121,93020.0,93006.0,0.09123463]
[1768831444307,0.06833243,93020.0,93003.0,0.010758]
[1768831444497,0.06833243,93020.0,93005.0,0.010757]
[1768831445000,0.06833243,93020.0,92994.0,0.025084]
[1768831445001,0.00016121,93020.0,93007.0,0.010757]
[1768831445704,0.00016121,93020.0,93009.0,0.010757]
[1768831446401,0.00016121,93020.0,93013.0,0.010757]
[1768831447193,0.00016121,93020.0,93015.0,0.010756]
[1768831447602,0.00016121,93020.0,93012.0,0.010757]
[1768831447994,0.00236498,93024.0,93008.0,0.17770288]
[1768831448199,0.0968,93028.0,93015.0,0.09123463]
[1768831448393,0.02312496,93027.0,93016.0,0.09123463]
[1768831448597,0.0968,93028.0,93011.0,0.08646825]
[1768831448598,0.02312496,93026.0,93011.0,0.08646825]
[1768831448798,0.0968,93028.0,93011.0,0.08646825]
[1768831448999,0.02312578,93027.0,93011.0,0.08646825]
[1768831449199,0.02312578,93027.0,93010.0,0.09123463]
[1768831449200,0.02312578,93026.0,93012.0,0.010757]
[1768831449399,0.02312578,93025.0,93012.0,0.010757]
[1768831449606,0.07775058,93027.0,93012.0,0.010757]
[1768831449806,0.02312936,93026.0,93012.0,0.010757]
[1768831450003,0.02312936,93025.0,93012.0,0.010757]
[1768831450199,0.06699558,93027.0,93012.0,0.010757]
[1768831450403,0.06699558,93027.0,93010.0,0.09123463]
[1768831450404,0.09027678,93026.0,93011.0,0.010757]
[1768831450615,0.0231329,93025.0,93011.0,0.010757]
[1768831450808,0.06714388,93026.0,93011.0,0.010757]
[1768831451008,0.0231329,93025.0,93013.0,0.010757]
[1768831451312,0.06714388,93026.0,93013.0,0.010757]
[1768831451508,0.02313355,93025.0,93013.0,0.010757]
[1768831451707,0.06714388,93026.0,93011.0,0.010757]
[1768831451909,0.02313355,93025.0,93013.0,0.010757]
[1768831452110,0.06714388,93026.0,93013.0,0.010757]
[1768831452310,0.0231333,93025.0,93013.0,0.010757]
[1768831452510,0.06714388,93026.0,93013.0,0.010757]
[1768831452707,0.02313315,93025.0,93013.0,0.010757]
[1768831452908,0.06714388,93026.0,93013.0,0.010757]
[1768831453109,0.02313315,93025.0,93013.0,0.010757]
[1768831453311,0.06714388,93026.0,93013.0,0.010757]
[1768831453504,0.02313277,93025.0,93013.0,0.010757]
[1768831453710,0.02313277,93025.0,93010.0,0.09123463]
[1768831453711,0.06714388,93026.0,93014.0,0.010756]
[1768831453905,0.02313276,93025.0,93012.0,0.010757]
[1768831454104,0.06714388,93026.0,93012.0,0.010757]
[1768831454305,0.02313252,93025.0,93012.0,0.010757]
[1768831454507,0.0968,93028.0,93013.0,0.010756]
[1768831454811,0.0968,93028.0,93010.0,0.09123463]
[1768831454812,0.02313231,93027.0,93010.0,0.09123463]
[1768831455115,0.02313231,93026.0,93013.0,0.010757]
[1768831455413,0.02313231,93025.0,93010.0,0.17770288]
[1768831455615,0.0968,93028.0,93010.0,0.17770288]
[1768831455811,0.02313185,93027.0,93010.0,0.17770288]
[1768831456010,0.02313185,93026.0,93010.0,0.17770288]
[1768831456210,0.02313185,93025.0,93010.0,0.17770288]
[1768831456411,0.0968,93028.0,93015.0,0.010756]
[1768831456714,0.02313139,93027.0,93016.0,0.010756]
[1768831456917,0.02313139,93026.0,93012.0,0.17770288]
[1768831457215,0.00236487,93029.0,93014.0,0.17770288]
[1768831457409,0.07026136,93029.0,93010.0,0.08646825]
[1768831457610,0.07026136,93029.0,93013.0,0.010757]
[1768831458119,0.08101636,93029.0,93013.0,0.010757]
[1768831458315,0.06727301,93023.0,93010.0,0.010757]
[1768831458515,0.010756,93017.0,93007.0,0.00016121]
[1768831458711,0.07802901,93017.0,93007.0,0.00016121]
[1768831458912,0.06727301,93017.0,93007.0,0.00016121]
[1768831459617,0.06838749,93023.0,93007.0,0.00016121]
[1768831460018,0.06838749,93023.0,93009.0,0.010757]
[1768831460313,0.06838749,93023.0,93007.0,0.00016121]
[1768831460521,0.07945915,93022.0,93007.0,0.01091821]
[1768831462214,0.06870315,93022.0,93007.0,0.00016121]
[1768831462412,0.06776043,93021.0,93007.0,0.00016121]
[1768831462620,0.010755,93027.0,93007.0,0.00016121]
[1768831462621,0.06776043,93017.0,93007.0,0.00016121]
[1768831463323,0.08690574,93020.0,93007.0,0.00016121]
[1768831463625,0.06719633,93021.0,93007.0,0.01091821]
[1768831464625,0.010755,93026.0,93009.0,0.18513599]
[1768831465507,0.06653651,93028.0,93009.0,0.17437899]
[1768831465724,0.07686658,93027.0,93011.0,0.010757]
[1768831467118,0.06611158,93027.0,93007.0,0.00016121]
[1768831467823,0.00236487,93029.0,93011.0,0.09449865]
[1768831468023,0.00236487,93029.0,93007.0,0.00016121]
[1768831468024,0.01311987,93029.0,93014.0,0.17437899]
[1768831468227,0.010755,93027.0,93014.0,0.17437899]
[1768831468527,0.010755,93027.0,93012.0,0.010757]
[1768831468719,0.0647431,93024.0,93009.0,0.010757]
[1768831470324,0.0647431,93024.0,93008.0,0.010757]
[1768831470626,0.06549089,93021.0,93010.0,0.010757]
[1768831471827,0.06549089,93021.0,93007.0,0.01091821]
[1768831472027,0.06492703,93020.0,93007.0,0.00016121]
[1768831472324,0.06492703,93020.0,93007.0,0.01091821]
[1768831472736,0.06492703,93020.0,92999.0,0.00616404]
[1768831472916,0.08805573,93019.0,92998.0,0.19129865]
[1768831473116,0.08567121,93018.0,93000.0,0.10751127]
[1768831473318,0.08567121,93018.0,93006.0,0.010757]
[1768831474424,0.00016121,93023.0,92998.0,0.19129865]
[1768831474425,0.08939489,93014.0,93000.0,0.010758]
[1768831474622,0.08567121,93013.0,93000.0,0.010758]
[1768831474922,0.08567121,93013.0,93001.0,0.010758]
[1768831476424,0.08567121,93013.0,92999.0,0.010758]
[1768831477325,0.08567121,93012.0,92999.0,0.010758]
[1768831477829,0.08567121,93012.0,93000.0,0.010758]
[1768831481032,0.08567121,93012.0,92998.0,0.0968]
[1768831482425,0.08567121,93012.0,93001.0,0.010758]
[1768831482631,0.08567121,93012.0,93002.0,0.010758]
[1768831483732,0.08662248,93016.0,93003.0,0.010758]
[1768831484034,0.010756,93015.0,93001.0,0.010758]
[1768831484333,0.09737848,93015.0,93001.0,0.010758]